bitfinex-derivatives/quotes_ETHF0:USTF0_20251021
["timestamp","ask_amount","ask_price","bid_price","bid_amount"]
[1761049400651,0.3329,3914.9,3914.8,0.45968]
[1761049400956,0.3329,3914.9,3914.8,1.81738855]
[1761049401152,0.3329,3914.9,3914.8,0.45968]
[1761049401352,0.3329,3914.9,3914.8,1.81738855]
[1761049401751,0.00223517,3915.0,3914.9,0.78746]
[1761049401958,0.3329,3917.1,3915.8,0.1098]
[1761049402262,0.3329,3917.1,3916.9,0.67830208]
[1761049402444,0.3329,3917.1,3917.0,0.67697153]
[1761049402752,0.3329,3917.5,3917.1,0.7872]
[1761049402954,0.3359056,3917.5,3917.2,0.90236151]
[1761049403262,0.92529,3917.2,3917.1,0.00327521]
[1761049404055,1.60797,3917.1,3916.6,0.67679175]
[1761049404257,0.3329,3916.4,3916.0,0.67679175]
[1761049404654,0.3329,3916.4,3916.0,1.00459175]
[1761049404853,0.79241,3916.3,3916.0,0.67679175]
[1761049405062,0.3329,3916.2,3916.0,0.00270499]
[1761049405261,0.79243,3916.1,3916.0,0.00270499]
[1761049405449,0.3329,3916.1,3916.0,0.00270499]
[1761049405758,0.3329,3916.3,3916.0,1.13903674]
[1761049405951,0.3329,3916.3,3916.0,0.00270499]
[1761049406649,0.45945,3916.8,3916.2,0.4595]
[1761049406851,0.3329,3916.7,3916.4,0.45948]
[1761049407046,0.3329,3916.7,3916.2,1.13630175]
[1761049407251,0.3329,3916.7,3916.3,0.4595]
[1761049407656,0.79236,3916.7,3916.2,0.45951]
[1761049407869,0.3317,3916.7,3916.1,0.67679175]
[1761049408363,0.3317,3916.4,3916.0,10.18649674]
[1761049408561,0.3317,3916.4,3916.1,0.45952]
[1761049408759,0.3317,3916.4,3916.2,0.4595]
[1761049409356,0.3317,3916.4,3916.0,1.13902674]
[1761049409966,0.133,3917.2,3916.0,0.00270499]
[1761049409967,0.3317,3917.0,3916.0,0.00270499]
[1761049410256,0.133,3917.2,3916.0,0.00270499]
[1761049410257,0.3317,3916.1,3916.0,0.00270499]
[1761049411658,5.3317,3916.1,3916.0,0.00270499]
[1761049412867,0.3317,3916.1,3916.0,0.00270499]
[1761049413262,0.4595,3916.4,3916.1,0.79152]
[1761049413263,0.3317,3916.4,3916.1,0.79152]
[1761049413859,0.3317,3916.2,3916.0,0.00270499]
[1761049414060,0.3317,3916.1,3916.0,0.00270499]
[1761049414567,5.3317,3916.1,3916.0,0.00270499]
[1761049417157,0.3317,3916.1,3916.0,0.00270499]
[1761049418768,5.3317,3916.1,3916.0,0.00270499]
[1761049418965,0.3317,3915.7,3915.1,0.67679175]
[1761049419276,0.79133,3915.2,3915.1,0.67679175]
[1761049419466,0.79137,3914.9,3914.8,0.67679175]
[1761049419665,0.1332,3915.1,3913.9,2.26858555]
[1761049419666,0.45972,3914.5,3914.2,0.45975]
[1761049419974,0.3317,3914.1,3914.0,0.67679175]
[1761049420176,0.3317,3914.1,3914.0,0.68009741]
[1761049420369,0.3317,3914.1,3914.0,1.13986741]
[1761049420766,0.3317,3914.1,3914.0,0.68009741]
[1761049421881,0.3317,3914.1,3914.0,0.00330566]
[1761049422075,0.3317,3914.1,3913.3,0.67679175]
[1761049422076,0.79154,3913.4,3913.3,0.67679175]
[1761049422276,0.3317,3913.3,3912.9,1.13669175]
[1761049422480,0.3317,3913.6,3913.0,0.332]
[1761049422674,0.3317,3913.6,3913.2,0.45986]
[1761049422873,0.1332,3913.7,3913.0,0.67679175]
[1761049423068,0.3317,3913.1,3913.0,0.00306617]
[1761049424973,0.45982,3913.6,3913.1,0.45988]
[1761049425173,0.3317,3913.5,3913.0,0.33506617]
[1761049425380,0.3317,3913.5,3913.3,0.45985]
[1761049425975,0.3317,3913.5,3913.4,0.332]
[1761049426183,0.4649,3913.7,3913.5,0.45983]
[1761049426382,0.3317,3913.6,3913.5,0.45983]
[1761049426685,0.3317,3914.2,3913.9,0.45978]
[1761049427487,0.45978,3914.1,3913.7,0.45981]
[1761049427688,0.3317,3914.0,3913.7,0.45981]
[1761049427987,0.3317,3914.0,3913.8,0.4598]
[1761049428386,0.79148,3914.0,3913.3,0.332]
[1761049428587,0.3317,3913.9,3913.7,0.45981]
[1761049428790,0.3317,3913.9,3913.7,0.79181]
[1761049429085,0.3317,3915.9,3915.6,0.79159]
[1761049429285,0.3317,3915.9,3915.7,0.45957]
[1761049429685,0.3317,3916.3,3915.5,0.332]
[1761049429891,0.3317,3916.3,3915.2,10.14079175]
[1761049429892,0.3317,3916.3,3915.7,0.45958]
[1761049430086,0.79437501,3916.3,3915.7,0.45958]
[1761049430288,0.4649,3915.8,3915.2,0.67679175]
[1761049430495,0.3317,3915.7,3915.3,0.67679175]
[1761049430796,0.3317,3915.7,3915.5,0.7916]
[1761049432195,0.3317,3915.7,3915.5,0.4596]
[1761049432392,0.3317,3915.7,3915.3,1.00879175]
[1761049432892,0.3317,3916.2,3916.0,0.45954]
[1761049433092,0.3317,3916.2,3916.0,0.46233358]
[1761049433685,0.33485501,3916.3,3916.2,0.45953]
[1761049434392,0.33485501,3916.3,3916.0,0.00279358]
[1761049434593,0.00315501,3916.3,3916.0,0.33479358]
[1761049434788,0.00315501,3916.3,3916.2,0.332]
[1761049434990,0.00315501,3916.3,3916.2,1.00756815]
[1761049435182,0.00315501,3916.3,3916.2,0.332]
[1761049435593,0.00315501,3916.3,3916.2,1.00756815]
[1761049435794,0.00315501,3916.3,3916.2,0.332]
[1761049435987,0.33485501,3916.3,3916.1,1.13510815]
[1761049436187,0.33485501,3916.3,3916.1,0.79154]
[1761049436389,0.00315501,3916.3,3916.2,0.332]
[1761049436993,0.3317,3916.2,3916.0,0.79433358]
[1761049437294,0.33485501,3916.3,3916.1,0.332]
[1761049437490,0.33485501,3916.3,3916.1,0.79153]
[1761049437690,0.00315501,3916.3,3916.2,0.3278]
[1761049438095,0.32605501,3916.3,3916.1,0.45953]
[1761049440802,0.00315501,3916.3,3916.2,0.3278]
[1761049441596,0.00315501,3916.3,3916.2,0.52982501]
[1761049442103,0.00315501,3916.3,3916.2,1.00336815]
[1761049442300,0.00315501,3916.3,3916.2,0.3278]
[1761049444399,0.3229,3917.1,3917.0,0.45943]
[1761049444601,0.3229,3917.1,3917.0,0.78723]
[1761049445401,0.3229,3917.6,3917.0,0.3278]
[1761049445602,0.32530152,3917.6,3917.4,0.45938]
[1761049446102,0.32530152,3917.6,3917.4,0.78718]
[1761049446293,0.32530152,3917.6,3917.5,0.3278]
[1761049446696,0.00240152,3917.6,3917.5,0.3278]
[1761049446999,0.2569,3918.2,3918.1,0.7871]
[1761049447203,0.2569,3918.2,3918.1,15.2421]
[1761049447798,0.2569,3918.3,3918.2,0.3278]
[1761049448007,0.26014545,3918.3,3918.2,0.3278]
[1761049448903,0.3229,3919.9,3918.6,0.4377]
[1761049449096,0.1299,3921.4,3919.2,0.3278]
[1761049449293,0.1299,3921.4,3918.9,1.82036938]
[1761049449294,0.2550695,3920.9,3919.4,0.3278]
[1761049449497,0.7140895,3920.6,3919.8,0.78689]
[1761049449799,0.1299,3920.0,3919.1,0.3278]
[1761049450001,0.00223925,3920.0,3919.4,0.3278]
[1761049450305,0.45916,3919.4,3919.1,0.00216499]
[1761049450502,0.1299,3919.3,3919.1,0.00216499]
[1761049450800,0.45912,3919.7,3919.1,0.00216499]
[1761049451004,0.3229,3919.7,3919.2,0.3278]
[1761049451309,0.3229,3919.7,3919.3,0.3278]
[1761049451606,0.3229,3919.7,3919.4,0.3278]
[1761049452298,0.13213925,3920.0,3919.1,0.32996499]
[1761049452498,0.45913,3919.6,3919.1,2.49296499]
[1761049452804,0.3229,3919.4,3919.1,0.00216499]
[1761049453005,0.3229,3919.2,3919.1,0.00216499]
[1761049453503,0.3229,3919.5,3919.3,0.3278]
[1761049453695,0.00223925,3920.0,3919.5,0.45914]
[1761049453897,0.4591,3919.9,3919.6,0.3278]
[1761049454196,0.3229,3919.7,3919.3,0.45915]
[1761049454396,0.3229,3919.7,3919.4,0.78695]
[1761049454595,0.78202,3919.7,3919.2,0.45917]
[1761049454902,0.3229,3919.6,3919.2,0.78697]
[1761049455090,0.45914,3919.5,3919.3,0.3278]
[1761049455294,0.3229,3919.4,3919.1,0.00216499]
[1761049455492,0.3229,3919.4,3919.2,0.45917]
[1761049455693,0.3229,3919.4,3919.1,0.32996499]
[1761049456102,0.78207,3919.3,3919.1,0.00216499]
[1761049456303,0.3229,3919.2,3919.1,0.00216499]
[1761049458108,0.3357,3919.1,3918.1,0.4593]
[1761049458310,0.3357,3918.5,3918.0,0.79921]
[1761049458504,0.3357,3918.2,3918.1,0.3399]
[1761049458698,0.45924,3918.7,3918.2,0.45929]
[1761049458895,0.3357,3918.6,3918.2,0.3399]
[1761049459094,0.79497,3918.4,3918.2,0.00314076]
[1761049459295,0.3357,3918.5,3918.2,0.00314076]
[1761049459601,0.3357,3918.4,3918.2,0.46243076]
[1761049459808,40.8,3919.0,3918.2,0.46243076]
[1761049459809,0.3357,3918.8,3918.6,0.79914]
[1761049460203,40.8,3919.0,3918.7,0.3399]
[1761049460204,0.3357,3918.9,3918.7,0.3399]
[1761049460605,0.3357,3918.9,3918.7,0.45923]
[1761049460804,0.3357,3919.1,3919.0,0.3399]
[1761049461004,40.9299,3919.3,3919.0,0.45919]
[1761049461005,0.79487,3919.3,3919.0,0.45919]
[1761049461305,0.3357,3919.2,3919.1,0.3399]
[1761049461500,40.8,3919.9,3918.8,0.45921]
[1761049461701,0.3357,3919.1,3918.8,0.45921]
[1761049461899,0.45919,3919.1,3918.8,0.45921]
[1761049462103,0.133,3919.2,3918.2,1.82087631]
[1761049462104,40.8,3919.9,3918.2,0.67266631]
[1761049462403,0.3357,3919.9,3919.0,0.3399]
[1761049462597,0.00223925,3920.0,3919.0,0.3399]
[1761049462598,0.47093925,3920.0,3919.2,0.1381]
[1761049462906,0.3357,3919.6,3919.4,0.45915]
[1761049463104,0.3357,3919.6,3919.5,0.3399]
[1761049463500,0.3357,3919.9,3919.5,0.3399]
[1761049463704,0.2555,3919.8,3919.7,0.3399]
[1761049463904,0.3357,3919.7,3919.4,0.79904]
[1761049464200,0.45913,3919.6,3919.4,0.3399]
[1761049464600,0.45913,3919.6,3919.4,0.45915]
[1761049464802,0.3357,3919.5,3919.4,0.45915]
[1761049465008,0.3357,3919.5,3919.2,0.45917]
[1761049465197,0.3357,3919.5,3919.0,0.3399]
[1761049465198,0.3357,3919.5,3919.3,0.45916]
[1761049465810,0.3357,3919.5,3919.3,0.79906]
[1761049466104,0.2555,3919.9,3919.4,0.3399]
[1761049466407,0.13523925,3920.0,3919.2,0.1381]
[1761049466408,0.3357,3919.7,3919.5,0.79903]
[1761049466600,0.2555,3919.8,3919.7,0.45912]
[1761049466803,0.2555,3919.8,3919.7,0.79902]
[1761049467207,0.2555,3919.9,3919.8,0.3399]
[1761049467706,0.5912,3919.9,3919.8,0.3399]
[1761049467908,0.5912,3919.9,3919.7,0.45912]
[1761049467909,0.5719,3919.9,3919.7,0.45912]
[1761049468109,0.2555,3919.9,3919.8,0.3153]
[1761049468312,0.5719,3919.9,3919.6,0.66952555]
[1761049468506,0.3164,3919.7,3919.6,0.77442]
[1761049468713,0.2555,3919.8,3919.7,0.3153]
[1761049469013,0.5719,3919.8,3919.7,0.45912]
[1761049469510,0.3164,3919.7,3919.5,0.66952555]
[1761049469700,0.3164,3919.7,3919.4,0.66952555]
[1761049469900,0.3164,3919.6,3919.4,1.12867555]
[1761049470101,0.3164,3919.6,3919.5,0.45914]
[1761049470303,0.3164,3919.6,3919.5,1.12866555]
[1761049470506,0.3857,3919.8,3919.4,0.66952555]
[1761049470814,0.3164,3919.5,3919.2,0.45917]
[1761049471013,0.3857,3919.8,3919.1,0.66952555]
[1761049471014,0.45916,3919.3,3919.1,0.66952555]
[1761049471218,0.4466,3919.2,3919.1,0.66952555]
[1761049471512,0.4466,3919.2,3919.1,1.12871555]
[1761049471812,0.90577,3919.2,3919.1,0.66952555]
[1761049472010,0.45921,3918.9,3918.6,1.12876555]
[1761049472215,0.3164,3918.8,3918.7,0.66952555]
[1761049472708,0.1302,3919.2,3918.8,0.45922]
[1761049472913,0.3164,3919.1,3918.9,0.45921]
[1761049473317,1.14766,3920.2,3919.2,0.45917]
[1761049473518,0.45915,3919.4,3919.1,1.12870555]
[1761049473719,0.3164,3919.3,3919.2,0.45917]
[1761049474219,0.3164,3919.3,3919.1,0.89645251]
[1761049474413,0.71465,3919.4,3919.1,0.89645251]
[1761049474414,0.90577,3919.2,3919.1,0.89645251]
[1761049474606,0.90577,3919.2,3918.6,0.3153]
[1761049474607,0.3164,3919.1,3919.0,0.89645251]
[1761049474804,0.3164,3919.1,3919.0,1.35565251]
[1761049475419,0.3164,3919.1,3919.0,1.81580416]
[1761049475623,0.3164,3919.3,3919.2,0.77447]
[1761049475821,0.5719,3919.4,3919.3,0.77446]
[1761049476006,0.5719,3919.4,3919.3,0.45916]
[1761049476209,0.5719,3919.4,3919.3,1.35660416]
[1761049476518,0.3164,3919.3,3919.2,1.81577416]
[1761049477507,0.3164,3919.3,3919.2,0.45917]
[1761049477716,0.3164,3919.3,3919.2,1.81257568]
[1761049478112,0.77556,3919.3,3919.2,1.35340568]
[1761049478815,0.77557,3919.2,3919.1,0.90246615]
[1761049479119,0.77559,3919.1,3919.0,0.67708966]
[1761049481515,0.77559,3919.1,3918.8,0.90246615]
[1761049481516,0.77561,3918.9,3918.8,0.67708966]
[1761049482322,0.77562,3918.8,3918.7,0.67708966]
[1761049482924,41.57562,3918.8,3918.7,0.67708966]
[1761049483327,0.45927,3918.4,3918.3,0.67708966]
[1761049483516,0.77567,3918.4,3918.3,0.67708966]
[1761049483714,0.77568,3918.3,3918.2,0.68023042]
[1761049483912,0.77568,3918.3,3918.2,0.00314076]
[1761049484821,5.77568,3918.3,3918.2,0.00314076]
[1761049485322,0.77576,3917.6,3917.5,0.67708966]
[1761049486113,0.77576,3917.6,3917.3,1.36185615]
[1761049486114,0.77577,3917.5,3917.4,0.67708966]
[1761049486317,0.77577,3917.5,3917.4,0.00205857]
[1761049486927,0.3164,3918.3,3917.4,0.00205857]
[1761049487114,0.77575,3917.7,3917.4,0.67828357]
[1761049487427,0.3164,3917.5,3917.4,0.46143857]
[1761049487725,0.77577,3917.5,3917.4,1.13766357]
[1761049487926,0.3164,3917.5,3917.4,1.13766357]
[1761049488223,0.3164,3917.9,3917.8,0.45933]
[1761049488429,0.77573,3917.9,3917.8,0.45933]
[1761049488619,0.3164,3917.8,3917.6,0.45936]
[1761049488825,0.3164,3917.7,3917.6,0.77466]
[1761049489425,0.3164,3917.9,3917.7,0.45935]
[1761049489633,0.3164,3917.9,3917.8,0.45934]
[1761049489826,0.45934,3917.8,3917.4,0.80498357]
[1761049490125,0.45934,3917.8,3917.6,0.3153]
[1761049490331,0.77574,3917.8,3917.6,0.77466]
[1761049490517,0.77577,3917.5,3917.4,0.00205857]
[1761049491429,0.3164,3917.5,3917.4,0.77673857]
[1761049492030,0.77577,3917.5,3917.4,0.31735857]
[1761049492325,0.77577,3917.5,3917.4,0.00205857]
[1761049493826,5.77577,3917.5,3917.4,0.00205857]
[1761049494215,0.77577,3917.5,3917.4,0.00205857]
[1761049494421,41.57577,3917.5,3917.4,0.00205857]
[1761049496215,0.7759,3916.4,3916.3,0.676225]
[1761049496427,0.1302,3916.8,3916.2,0.45951]
[1761049496428,0.3164,3916.3,3916.2,0.45951]
[1761049496623,0.3164,3917.1,3917.0,0.45943]
[1761049496822,0.1302,3916.8,3916.4,0.3153]
[1761049497021,0.3164,3916.7,3916.4,0.3153]
[1761049497223,0.77804016,3916.7,3916.6,0.45948]
[1761049497624,0.3164,3916.5,3916.4,0.00240227]
[1761049497930,0.00217016,3916.7,3916.6,0.77838]
[1761049498626,0.33117016,3916.7,3916.6,0.77838]
[1761049498933,0.00217016,3916.7,3916.6,0.77838]
[1761049499128,0.33117016,3916.7,3916.6,0.77838]
[1761049499330,0.00217016,3916.7,3916.6,0.77838]
[1761049500328,0.00217016,3916.7,3916.6,5.77838]
[1761049500932,0.78835,3917.7,3917.6,0.3189]
[1761049501139,0.91853,3918.0,3917.8,0.77823]
[1761049501322,0.91853,3918.0,3917.2,1.14852]
[1761049501323,0.45934,3917.8,3917.4,0.77827]
[1761049501528,0.329,3917.7,3917.4,0.3189]
[1761049501830,0.329,3917.4,3917.1,0.3189]
[1761049502029,0.329,3917.1,3916.9,0.45944]
[1761049502332,0.4594,3917.3,3916.9,0.45943]
[1761049502528,0.1337,3917.4,3916.7,0.6746501]
[1761049502733,0.329,3917.0,3916.6,0.6746501]
[1761049503031,0.329,3916.8,3916.7,1.1341101]
[1761049503232,0.329,3916.8,3916.7,0.45946]
[1761049503624,0.329,3916.8,3916.6,0.9935501]
[1761049503625,0.329,3917.3,3916.6,0.6746501]
[1761049503930,0.329,3916.5,3916.4,0.67705237]
[1761049504435,0.329,3916.5,3916.4,0.00240227]
[1761049504436,0.78849,3916.5,3916.4,0.00240227]
[1761049505233,0.329,3916.5,3916.4,0.46190227]
[1761049505434,0.78849,3916.5,3916.4,0.00240227]
[1761049507336,5.78849,3916.5,3916.4,0.00240227]
[1761049507530,5.78849,3916.5,3915.2,1.66778911]
[1761049507531,0.4596,3915.6,3915.4,1.1342701]
[1761049507831,0.329,3915.5,3915.4,0.45962]
[1761049508037,0.329,3915.4,3915.3,0.6746501]
[1761049508537,0.329,3915.4,3915.3,0.00221805]
[1761049509825,5.329,3915.4,3915.3,0.00221805]
[1761049510029,0.329,3915.4,3915.3,0.00221805]
[1761049510439,5.329,3915.4,3915.3,0.00221805]
[1761049510634,0.59344,3914.4,3914.2,0.67651079]
[1761049510836,0.45976,3914.3,3914.1,0.67651079]
[1761049511032,0.1337,3914.4,3913.7,1.13632079]
[1761049511033,0.4627,3913.8,3913.7,1.13632079]
[1761049511234,0.4627,3913.8,3913.7,0.45981]
[1761049511436,0.329,3913.7,3913.5,1.13635079]
[1761049511740,0.33153482,3913.7,3913.5,0.6785315]
[1761049512046,0.329,3913.6,3913.5,0.00202071]
[1761049513627,0.329,3912.9,3912.8,0.02555715]
[1761049514037,0.329,3912.8,3912.1,0.99541079]
[1761049514232,0.329,3912.3,3912.0,0.67651079]
[1761049514432,0.78899,3912.3,3911.7,0.67651079]
[1761049514742,0.329,3912.3,3911.8,0.46004]
[1761049515041,0.329,3911.9,3911.7,0.00309126]
[1761049515344,0.59373,3912.0,3911.7,0.00309126]
[1761049515345,0.329,3911.8,3911.7,0.00309126]
[1761049516039,0.1337,3912.6,3911.9,0.3189]
[1761049516040,0.329,3912.4,3911.9,0.3189]
[1761049516239,0.329,3912.4,3911.7,0.00309126]
[1761049516240,0.329,3912.4,3912.0,0.3189]
[1761049516435,0.329,3912.4,3911.9,0.46003]
[1761049516828,0.329,3911.9,3911.7,0.00309126]
[1761049517033,0.78904,3911.9,3911.7,0.00309126]
[1761049517244,0.329,3911.8,3911.7,0.00309126]
[1761049519133,0.329,3911.8,3910.4,0.317]
[1761049519134,0.3298,3911.7,3910.4,0.317]
[1761049519345,0.3298,3911.0,3910.7,0.46017]
[1761049519838,0.3298,3911.0,3910.8,0.46015]
[1761049520342,0.3298,3911.0,3910.8,0.46219529]
[1761049520931,0.3298,3911.0,3910.8,0.77919529]
[1761049521531,0.78994,3911.0,3910.8,0.00204529]
[1761049521742,0.3298,3910.9,3910.8,0.00204529]
[1761049521938,0.33254862,3910.9,3910.8,0.00204529]
[1761049522841,0.3298,3910.1,3909.3,0.46034]
[1761049523040,0.3298,3910.0,3909.3,0.317]
[1761049523248,0.3298,3910.0,3909.8,0.46027]
[1761049523541,9.425,3910.5,3909.7,0.317]
[1761049523542,0.3298,3910.5,3909.7,0.317]
[1761049523750,0.3298,3910.5,3910.3,0.46021]
[1761049524140,0.3298,3910.5,3910.2,0.46023]
[1761049524446,0.79001,3910.4,3909.9,0.46026]
[1761049524648,0.46027,3909.9,3909.7,0.00292438]
[1761049524840,0.3298,3909.8,3909.7,0.00292438]
[1761049526039,0.3298,3909.8,3907.9,2.321]
[1761049526040,1.15083,3909.4,3908.1,0.77747]
[1761049526235,1.15083,3909.4,3907.8,0.14608985]
[1761049526236,0.3298,3909.5,3908.4,0.317]
[1761049526437,0.3298,3909.1,3908.4,0.317]
[1761049527045,0.3298,3909.1,3908.8,0.317]
[1761049527248,0.3298,3909.1,3908.8,0.77739]
[1761049527748,0.3298,3909.1,3908.9,0.46038]
[1761049528041,0.3366,3909.4,3909.1,0.46036]
[1761049528952,0.3366,3908.9,3908.4,0.33010539]
[1761049529152,0.3366,3908.9,3908.7,0.4604]
[1761049529442,0.3366,3909.3,3908.9,0.3269]
[1761049529640,0.3366,3909.2,3908.8,0.46039]
[1761049529847,0.3366,3909.2,3908.9,0.46038]
[1761049530341,0.3366,3909.2,3909.0,0.46036]
[1761049530541,0.3366,3909.2,3909.1,0.3269]
[1761049530741,0.3366,3909.2,3908.5,1.15108]
[1761049530742,0.3366,3909.4,3908.9,0.3269]
[1761049530935,0.3366,3909.6,3909.5,0.7872]
[1761049531346,0.3366,3909.6,3909.5,0.4603]
[1761049532036,0.3366,3909.6,3908.8,1.151]
[1761049532037,0.3366,3909.5,3909.3,0.46033]
[1761049532537,0.3366,3909.5,3908.4,0.13110539]
[1761049532740,0.3366,3908.9,3908.4,0.33010539]
[1761049532950,0.3366,3908.8,3908.6,0.46042]
[1761049533148,0.3366,3908.8,3908.7,0.3269]
[1761049533341,0.3366,3908.9,3908.6,0.46041]
[1761049533648,0.3366,3908.9,3908.7,0.46041]
[1761049533849,0.46033,3909.4,3908.9,0.46038]
[1761049534051,0.3366,3909.5,3908.9,0.3269]
[1761049534253,0.3366,3909.4,3909.2,0.46035]
[1761049535245,0.3366,3909.4,3909.3,0.46034]
[1761049536149,0.3366,3909.4,3908.8,1.15098]
[1761049536150,0.3366,3909.8,3909.7,0.46029]
[1761049537043,0.3366,3910.1,3910.0,0.3269]
[1761049537351,0.4664,3909.6,3909.3,0.46033]
[1761049537543,0.3366,3909.5,3909.4,0.46032]
[1761049537742,0.3366,3909.5,3909.2,0.46034]
[1761049537939,0.3366,3909.2,3908.4,0.80761618]
[1761049538140,0.1298,3909.6,3908.5,0.3269]
[1761049538141,0.46038,3908.9,3908.5,0.3269]
[1761049538443,0.46038,3908.9,3908.4,0.00320539]
[1761049538444,0.3366,3908.5,3908.4,0.00320539]
[1761049538640,0.79703,3908.5,3908.4,0.00320539]
[1761049540057,5.79703,3908.5,3908.4,0.00320539]
[1761049540351,0.3366,3907.9,3907.8,0.02558985]
[1761049541448,0.3396066,3907.9,3907.8,0.02833278]
[1761049542654,0.3396066,3907.9,3907.1,1.13710079]
[1761049542655,0.3366,3907.4,3907.1,0.67651079]
[1761049542855,0.3366,3907.4,3906.7,1.67578911]
[1761049542856,0.3366,3907.4,3907.0,0.67651079]
[1761049543044,0.3366,3907.3,3907.1,0.46059]
[1761049543650,0.3366,3907.3,3907.1,0.46246914]
[1761049544154,0.4664,3907.2,3907.1,0.00187914]
[1761049550353,0.9202,3907.2,3907.1,0.00187914]
[1761049551154,0.226,3906.4,3906.2,1.13721079]
[1761049551457,0.226,3906.4,3906.0,0.90246615]
[1761049551458,0.46068,3906.4,3906.3,0.67651079]
[1761049551665,0.46068,3906.4,3906.1,0.67651079]
[1761049551854,0.3366,3906.4,3906.1,0.67651079]
[1761049552053,0.3366,3907.0,3906.3,0.3269]
[1761049552351,0.3366,3906.9,3906.6,0.46065]
[1761049552555,0.3366,3906.7,3906.5,0.46066]
[1761049553156,0.79725,3906.7,3906.4,0.67651079]
[1761049553464,0.3366,3906.6,3906.4,0.46068]
[1761049553665,0.3366,3906.6,3906.4,1.46409079]
[1761049553864,0.3366,3906.6,3906.5,0.3269]
[1761049554257,0.3366,3906.6,3906.5,1.00341079]
[1761049554459,0.3366,3906.9,3906.7,0.3269]
[1761049554664,0.3366,3907.1,3906.9,0.3269]
[1761049554855,0.3366,3907.0,3906.9,0.67866337]
[1761049555058,0.3366,3906.9,3906.8,0.67866337]
[1761049555357,0.2278,3906.8,3906.6,1.23406337]
[1761049555565,0.5626,3906.7,3906.6,1.01605]
[1761049555772,0.5626,3906.7,3906.6,1.24165]
[1761049556063,0.5626,3906.9,3906.8,1.24162]
[1761049556868,0.5626,3906.9,3906.8,1.4598943]
[1761049557566,0.7904,3906.9,3906.8,0.9073943]
[1761049557765,0.7904,3906.9,3906.4,0.3269]
[1761049557766,0.3366,3906.8,3906.7,0.6788943]
[1761049557962,0.5668,3906.8,3906.7,0.9083943]
[1761049558168,0.2302,3906.8,3906.7,0.2295]
[1761049558354,0.1298,3907.2,3906.7,1.43838828]
[1761049558355,0.36,3907.2,3906.7,1.43838828]
[1761049558559,0.82059,3907.2,3906.8,1.68781828]
[1761049558869,0.5668,3906.9,3906.8,1.89901828]
[1761049559363,0.7951,3907.4,3907.3,0.2295]
[1761049559665,0.3366,3907.3,3907.0,1.36898093]
[1761049559862,0.7951,3907.1,3907.0,0.90838093]
[1761049560059,0.7951,3907.1,3907.0,1.43828093]
[1761049560263,0.7951,3907.1,3907.0,0.67888093]
[1761049560458,0.7951,3906.9,3906.8,0.67904583]
[1761049560768,1.25572,3906.9,3906.8,0.67904583]
[1761049560964,0.1326,3907.0,3906.7,0.67904583]
[1761049560965,1.25573,3906.8,3906.7,0.67904583]
[1761049561365,1.25574,3906.7,3906.6,0.67904583]
[1761049561965,1.02745,3906.6,3906.5,0.67904583]
[1761049562272,1.02745,3906.6,3906.5,0.69017]
[1761049562273,0.7951,3906.6,3906.5,0.69017]
[1761049562472,0.7951,3906.6,3906.5,1.22007]
[1761049562666,0.5668,3907.0,3906.9,1.22002]
[1761049562869,0.2302,3907.3,3907.2,0.69008]
[1761049563071,0.5668,3907.3,3907.2,1.21998]
[1761049563267,0.5668,3907.5,3907.4,1.21996]
[1761049563568,0.3366,3907.3,3907.2,1.36668985]
[1761049563770,0.7951,3907.3,3907.2,1.36668985]
[1761049563962,0.7951,3907.3,3907.2,2.12608985]
[1761049564160,0.7951,3907.3,3907.2,1.59618985]
[1761049564566,0.7951,3907.3,3907.2,1.66550985]
[1761049564774,1.25567,3907.3,3907.2,0.90610985]
[1761049564970,1.25567,3907.3,3907.2,0.68007047]
[1761049565474,0.7951,3907.1,3907.0,1.59620985]
[1761049565682,0.3396066,3907.9,3907.8,1.21991]
[1761049565894,0.0030066,3907.9,3907.8,0.77921]
[1761049566588,0.0030066,3907.9,3907.8,5.77921]
[1761049566784,0.0030066,3907.9,3907.8,0.77921]
[1761049569096,0.1326,3907.8,3907.5,1.80880555]
[1761049569298,0.3366,3907.7,3907.4,2.26935555]
[1761049569491,0.3366,3907.7,3907.4,0.77925]
[1761049569792,0.3366,3907.7,3907.5,1.36364633]
[1761049569793,0.46052,3907.7,3907.5,1.36364633]
[1761049569998,0.3366,3907.6,3907.4,1.36364633]
[1761049570185,0.3366,3907.6,3907.5,0.90928292]
[1761049570495,0.4692,3907.8,3907.6,0.77923]
[1761049570698,0.3366,3907.8,3907.7,0.3187]
[1761049570998,0.3366,3907.7,3907.6,0.90926031]
[1761049572494,0.3366,3907.7,3907.6,1.22796031]
[1761049573097,0.3366,3907.7,3907.6,0.90926031]
[1761049573284,0.0030066,3907.9,3907.6,0.77922]
[1761049573486,0.3396066,3907.9,3907.8,0.3187]
[1761049575491,0.5698066,3907.9,3907.8,0.7594]
[1761049576296,0.5698066,3907.9,3907.8,1.44106374]
[1761049576792,0.0030066,3907.9,3907.8,0.7594]
[1761049578099,0.1859,3908.0,3907.9,1.2388]
[1761049578289,0.1859,3908.0,3907.9,2.60135142]
[1761049579099,0.18845645,3908.0,3907.9,2.60135142]
[1761049580993,1.28339,3909.5,3907.9,2.60135142]
[1761049580994,0.91112235,3910.0,3908.0,0.1221]
[1761049581199,0.4539,3909.8,3909.2,0.2141]
[1761049581393,0.4539,3909.3,3909.0,0.68102716]
[1761049581594,0.9309,3909.0,3908.7,1.14142716]
[1761049581902,0.7997,3908.8,3908.7,1.35552716]
[1761049582192,0.80273434,3908.8,3908.7,1.35852128]
[1761049582398,0.80273434,3908.8,3908.7,0.90139412]
[1761049583702,0.80273434,3908.8,3908.7,1.58242128]
[1761049583887,0.80273434,3908.8,3908.7,0.90139412]
[1761049584798,0.80273434,3908.8,3908.7,0.00299412]